fUSD/lending_fUSD_20240318
["ID","MTS","AMOUNT","RATE_DAILY","PERIOD"]
[319494183,1710801047648,-500.0,0.00023013,2]
[319494184,1710801047657,-500.0,0.00023013,2]
[319494185,1710801047667,-500.0,0.00023013,2]
[319494186,1710801047677,-500.0,0.00023013,2]
[319494187,1710801047686,-868.45,0.00023013,2]
[319494188,1710801047696,-500.0,0.00023013,2]
[319494189,1710801047705,-2743.09,0.00023013,2]
[319494190,1710801047714,-500.0,0.00023013,2]
[319494191,1710801047724,-500.0,0.00023013,2]
[319494192,1710801047734,-1261.92,0.00023013,2]
[319494193,1710801047743,-500.0,0.00023013,2]
[319494194,1710801047752,-1647.35,0.00023013,2]
[319494195,1710801047762,-620.58,0.00023013,2]
[319494196,1710801047771,-500.0,0.00023013,2]
[319494197,1710801047782,-500.0,0.00023013,2]
[319494198,1710801047791,-500.0,0.00023013,2]
[319494199,1710801047801,-641.83,0.00023013,2]
[319494200,1710801047810,-230.71402572,0.00023013,2]
[319494201,1710801047820,-585.85,0.00023013,2]
[319494202,1710801047829,-1727.41,0.00023013,2]
[319494203,1710801047839,-500.0,0.00023013,2]
[319494204,1710801047850,-1697.32,0.00023013,2]
[319494205,1710801047859,-500.0,0.00023013,2]
[319494206,1710801047869,-1310.25,0.00023013,2]
[319494207,1710801047878,-679.29,0.00023013,2]
[319494208,1710801047887,-500.0,0.00023013,2]
[319494209,1710801047897,-500.0,0.00023013,2]
[319494210,1710801047908,-740.07,0.00023013,2]
[319494211,1710801047918,-500.0,0.00023013,2]
[319494212,1710801047927,-500.0,0.00023013,2]
[319494213,1710801047936,-500.0,0.00023013,2]
[319494214,1710801047947,-500.0,0.00023013,2]
[319494215,1710801047957,-500.0,0.00023013,2]
[319494216,1710801047966,-500.0,0.00023013,2]
[319494217,1710801047975,-542.58,0.00023013,2]
[319494218,1710801047985,-3137.35,0.00023013,2]
[319494219,1710801047994,-500.0,0.00023013,2]
[319494220,1710801048003,-500.0,0.00023013,2]
[319494221,1710801048013,-500.0,0.00023013,2]
[319494222,1710801048022,-548.82,0.00023013,2]
[319494223,1710801048032,-500.0,0.00023013,2]
[319494224,1710801048041,-500.0,0.00023013,2]
[319494225,1710801048050,-500.0,0.00023013,2]
[319494226,1710801048059,-500.0,0.00023013,2]
[319494227,1710801048069,-500.0,0.00023013,2]
[319494228,1710801048078,-500.0,0.00023013,2]
[319494229,1710801048087,-500.0,0.00023013,2]
[319494230,1710801048096,-500.0,0.00023013,2]
[319494231,1710801048106,-3702.32,0.00023013,2]
[319494232,1710801048114,-1755.98,0.00023013,2]
[319494233,1710801048123,-500.0,0.00023013,2]
[319494234,1710801048132,-512.55,0.00023013,2]
[319494235,1710801048142,-500.0,0.00023013,2]
[319494236,1710801048151,-633.49,0.00023013,2]
[319494237,1710801048160,-500.0,0.00023013,2]
[319494238,1710801048169,-688.74,0.00023013,2]
[319494239,1710801048178,-1528.62,0.00023013,2]
[319494240,1710801048187,-500.0,0.00023013,2]
[319494241,1710801048197,-1077.35,0.00023013,2]
[319494242,1710801048207,-3173.6,0.00023013,2]
[319494243,1710801048217,-500.0,0.00023013,2]
[319494244,1710801048227,-1649.19,0.00023013,2]
[319494245,1710801048236,-500.0,0.00023013,2]
[319494246,1710801048245,-553.06,0.00023013,2]
[319494247,1710801048254,-500.0,0.00023013,2]
[319494248,1710801048263,-4842.31,0.00023013,2]
[319494249,1710801048272,-500.0,0.00023013,2]
[319494250,1710801048283,-500.0,0.00023013,2]
[319494251,1710801048292,-500.0,0.00023013,2]
[319494252,1710801048302,-329.24,0.00023013,2]
[319494253,1710801048311,-1767.83,0.00023013,2]
[319494254,1710801048320,-500.0,0.00023013,2]
[319494255,1710801048330,-500.0,0.00023013,2]
[319494256,1710801048338,-589.57,0.00023013,2]
[319494257,1710801048348,-500.0,0.00023013,2]
[319494258,1710801048358,-526.71,0.00023013,2]
[319494259,1710801048367,-5762.66,0.00023013,2]
[319494260,1710801048377,-500.0,0.00023013,2]
[319494261,1710801048386,-500.0,0.00023013,2]
[319494262,1710801048395,-500.0,0.00023013,2]
[319494263,1710801048404,-500.0,0.00023013,2]
[319494264,1710801048414,-1538.72,0.00023013,2]
[319494265,1710801048423,-500.0,0.00023013,2]
[319494266,1710801048432,-1121.93,0.00023013,2]
[319494267,1710801048441,-646.66,0.00023013,2]
[319494268,1710801048450,-8657.42,0.00023013,2]
[319494269,1710801048460,-2138.49,0.00023013,2]
[319494270,1710801048469,-500.0,0.00023013,2]
[319494271,1710801048479,-545.38,0.00023013,2]
[319494272,1710801048488,-2446.39,0.00023013,2]
[319494273,1710801048497,-526.87,0.00023013,2]
[319494274,1710801048507,-500.0,0.00023013,2]
[319494275,1710801048516,-1107.25,0.00023013,2]
[319494276,1710801048526,-772.83,0.00023013,2]
[319494277,1710801048537,-500.0,0.00023013,2]
[319494278,1710801048546,-958.79,0.00023013,2]
[319494279,1710801048555,-500.0,0.00023013,2]
[319494280,1710801048564,-500.0,0.00023013,2]
[319494281,1710801048574,-914.46,0.00023013,2]
[319494282,1710801048583,-500.0,0.00023013,2]
[319494283,1710801048592,-3034.02,0.00023013,2]
[319494284,1710801048601,-741.66,0.00023013,2]
[319494285,1710801048610,-592.52,0.00023013,2]
[319494286,1710801048619,-974.89,0.00023013,2]
[319494287,1710801048628,-1719.57,0.00023013,2]
[319494288,1710801048638,-3885.21,0.00023013,2]
[319494289,1710801048647,-500.0,0.00023013,2]
[319494290,1710801048656,-453.4732399,0.00023013,2]
[319494291,1710801048666,-500.0,0.00023013,2]
[319494292,1710801048675,-500.0,0.00023013,2]
[319494293,1710801048685,-500.0,0.00023013,2]
[319494294,1710801048694,-287.04,0.00023013,2]
[319494295,1710801048703,-1127.08,0.00023013,2]
[319494296,1710801048713,-1695.2,0.00023013,2]
[319494297,1710801048722,-500.0,0.00023013,2]
[319494298,1710801048731,-1666.58,0.00023013,2]
[319494299,1710801048741,-500.0,0.00023013,2]
[319494300,1710801048750,-500.0,0.00023013,2]
[319494301,1710801048759,-547.32,0.00023013,2]
[319494302,1710801048768,-3896.24,0.00023013,2]
[319494303,1710801048777,-204.6823419,0.00023013,2]
[319494304,1710801048788,-500.0,0.00023013,2]
[319494305,1710801048797,-500.0,0.00023013,2]
[319494306,1710801048807,-1780.73,0.00023013,2]
[319494307,1710801048816,-500.0,0.00023013,2]
[319494308,1710801048825,-500.0,0.00023013,2]
[319494309,1710801048834,-500.0,0.00023013,2]
[319494310,1710801048844,-3745.04,0.00023013,2]
[319494311,1710801048853,-500.0,0.00023013,2]
[319494312,1710801048862,-991.09,0.00023013,2]
[319494313,1710801048871,-500.0,0.00023013,2]
[319494314,1710801048880,-500.0,0.00023013,2]
[319494315,1710801048889,-500.0,0.00023013,2]
[319494316,1710801048899,-2989.78,0.00023013,2]
[319494317,1710801048910,-500.0,0.00023013,2]
[319494318,1710801048919,-500.0,0.00023013,2]
[319494319,1710801048928,-1000.0,0.00023027,2]
[319494320,1710801048942,-773.62,0.00023161,2]
[319494321,1710801048951,-4108.0,0.00023187,2]
[319494322,1710801048962,-151.05666748,0.00023232,2]
[319494323,1710801048971,-1000.0,0.00023286,2]
[319494324,1710801048981,-500.0,0.00023287,2]
[319494325,1710801048990,-500.0,0.00023287,2]
[319494326,1710801048999,-500.0,0.00023287,2]
[319494327,1710801049008,-500.0,0.00023287,2]
[319494328,1710801049018,-1450.68,0.00023287,2]
[319494329,1710801049028,-592.1,0.00023287,2]
[319494330,1710801049039,-500.0,0.00023287,2]
[319494331,1710801049048,-1020.92,0.00023287,2]
[319494332,1710801049057,-2398.91,0.00023287,2]
[319494333,1710801049066,-565.0,0.00023287,2]
[319494334,1710801049075,-1256.16,0.00023287,2]
[319494335,1710801049084,-500.0,0.00023287,2]
[319494336,1710801049093,-500.0,0.00023287,2]
[319494337,1710801049102,-311.65875982,0.00023287,2]
[319494338,1710801049111,-500.0,0.00023287,2]
[319494339,1710801049120,-813.04,0.00023287,2]
[319494340,1710801049130,-218.5,0.00023287,2]
[319494341,1710801049140,-500.0,0.00023287,2]
[319494342,1710801049150,-466.52272781,0.00023287,2]
[319494343,1710801049159,-868.45,0.00023287,2]
[319494344,1710801049168,-500.0,0.00023287,2]
[319494345,1710801049178,-2743.09,0.00023287,2]
[319494346,1710801049187,-500.0,0.00023287,2]
[319494347,1710801049196,-1261.92,0.00023287,2]
[319494348,1710801049205,-181.64,0.00023287,2]
[319494349,1710801049214,-1647.35,0.00023287,2]
[319494350,1710801049224,-620.58,0.00023287,2]
[319494351,1710801049233,-500.0,0.00023287,2]
[319494352,1710801049243,-500.0,0.00023287,2]
[319494353,1710801049252,-500.0,0.00023287,2]
[319494354,1710801049261,-641.83,0.00023287,2]
[319494355,1710801049272,-1727.41,0.00023287,2]
[319494356,1710801049284,-500.0,0.00023287,2]
[319494357,1710801049293,-1697.32,0.00023287,2]
[319494358,1710801049303,-1310.25,0.00023287,2]
[319494359,1710801049312,-679.29,0.00023287,2]
[319494360,1710801049321,-740.07,0.00023287,2]
[319494361,1710801049330,-500.0,0.00023287,2]
[319494362,1710801049339,-500.0,0.00023287,2]
[319494363,1710801049348,-500.0,0.00023287,2]
[319494364,1710801049358,-500.0,0.00023287,2]
[319494365,1710801049367,-500.0,0.00023287,2]
[319494366,1710801049376,-542.58,0.00023287,2]
[319494367,1710801049386,-3137.35,0.00023287,2]
[319494368,1710801049395,-500.0,0.00023287,2]
[319494369,1710801049403,-500.0,0.00023287,2]
[319494370,1710801049413,-548.82,0.00023287,2]
[319494371,1710801049422,-500.0,0.00023287,2]
[319494372,1710801049431,-500.0,0.00023287,2]
[319494373,1710801049440,-500.0,0.00023287,2]
[319494374,1710801049449,-500.0,0.00023287,2]
[319494375,1710801049459,-500.0,0.00023287,2]
[319494376,1710801049468,-500.0,0.00023287,2]
[319494377,1710801049477,-3702.32,0.00023287,2]
[319494378,1710801049486,-1755.98,0.00023287,2]
[319494379,1710801049495,-500.0,0.00023287,2]
[319494380,1710801049504,-512.55,0.00023287,2]
[319494381,1710801049514,-500.0,0.00023287,2]
[319494382,1710801049526,-633.49,0.00023287,2]
[319494383,1710801049539,-500.0,0.00023287,2]
[319494384,1710801049548,-688.74,0.00023287,2]
[319494385,1710801049557,-1528.62,0.00023287,2]
[319494386,1710801049566,-511.16703711,0.00023287,2]
[319494387,1710801049575,-1077.35,0.00023287,2]
[319494388,1710801049584,-3173.6,0.00023287,2]
[319494389,1710801049593,-500.0,0.00023287,2]
[319494390,1710801049602,-1649.19,0.00023287,2]
[319494391,1710801049611,-500.0,0.00023287,2]
[319494392,1710801049620,-553.06,0.00023287,2]
[319494393,1710801049629,-4842.31,0.00023287,2]
[319494394,1710801049639,-500.0,0.00023287,2]
[319494395,1710801049648,-500.0,0.00023287,2]
[319494396,1710801049657,-500.0,0.00023287,2]
[319494397,1710801049666,-1767.83,0.00023287,2]
[319494398,1710801049676,-500.0,0.00023287,2]
[319494399,1710801049685,-500.0,0.00023287,2]
[319494400,1710801049694,-589.57,0.00023287,2]
[319494401,1710801049703,-500.0,0.00023287,2]
[319494402,1710801049713,-526.71,0.00023287,2]
[319494403,1710801049722,-5762.66,0.00023287,2]
[319494404,1710801049731,-500.0,0.00023287,2]
[319494405,1710801049741,-500.0,0.00023287,2]
[319494406,1710801049750,-500.0,0.00023287,2]
[319494407,1710801049759,-500.0,0.00023287,2]
[319494408,1710801049769,-1538.72,0.00023287,2]
[319494409,1710801049778,-535.81379626,0.00023287,2]
[319494410,1710801049790,-1121.93,0.00023287,2]
[319494411,1710801049800,-646.66,0.00023287,2]
[319494412,1710801049809,-8657.42,0.00023287,2]
[319494413,1710801049819,-2138.49,0.00023287,2]
[319494414,1710801049828,-500.0,0.00023287,2]
[319494415,1710801049837,-545.38,0.00023287,2]
[319494416,1710801049847,-2446.39,0.00023287,2]
[319494417,1710801049856,-526.87,0.00023287,2]
[319494418,1710801049865,-500.0,0.00023287,2]
[319494419,1710801049875,-1107.25,0.00023287,2]
[319494420,1710801049884,-772.83,0.00023287,2]
[319494421,1710801049893,-500.0,0.00023287,2]
[319494422,1710801049903,-958.79,0.00023287,2]
[319494423,1710801049915,-500.0,0.00023287,2]
[319494424,1710801050052,-500.0,0.00023287,2]
[319494425,1710801050062,-914.46,0.00023287,2]
[319494426,1710801050071,-500.0,0.00023287,2]
[319494427,1710801050081,-3034.02,0.00023287,2]
[319494428,1710801050090,-741.66,0.00023287,2]
[319494429,1710801050099,-592.52,0.00023287,2]
[319494430,1710801050111,-974.89,0.00023287,2]
[319494431,1710801050121,-1719.57,0.00023287,2]
[319494432,1710801050131,-3885.21,0.00023287,2]
[319494433,1710801050140,-500.0,0.00023287,2]
[319494434,1710801050150,-500.0,0.00023287,2]
[319494435,1710801050159,-500.0,0.00023287,2]
[319494436,1710801050169,-500.0,0.00023287,2]
[319494437,1710801050178,-1127.08,0.00023287,2]
[319494438,1710801050187,-1695.2,0.00023287,2]
[319494439,1710801050196,-603.58837802,0.00023287,2]
[319494440,1710801050205,-1666.58,0.00023287,2]
[319494441,1710801050214,-500.0,0.00023287,2]
[319494442,1710801050224,-500.0,0.00023287,2]
[319494443,1710801050233,-3896.24,0.00023287,2]
[319494444,1710801050242,-352.46121233,0.00023287,2]
[319494445,1710801050252,-500.0,0.00023287,2]
[319494446,1710801050261,-1780.73,0.00023287,2]
[319494447,1710801050270,-500.0,0.00023287,2]
[319494448,1710801050279,-500.0,0.00023287,2]
[319494449,1710801050291,-500.0,0.00023287,2]
[319494450,1710801050300,-3745.04,0.00023287,2]
[319494451,1710801050309,-991.09,0.00023287,2]
[319494452,1710801050320,-211.45,0.00023287,2]
[319494453,1710801050329,-500.0,0.00023287,2]
[319494454,1710801050339,-2989.78,0.00023287,2]
[319494455,1710801050348,-155.0,0.00023288,2]
[319494456,1710801050357,-2239.40778425,0.000235,2]
[319494457,1710801050367,-1426.0,0.000235,2]
[319494458,1710801050376,-151.83237406,0.00023539,2]
[319494459,1710801050385,-1919.09106593,0.0002354,2]
[319494460,1710801050394,-500.0,0.00023561,2]
[319494461,1710801050403,-500.0,0.00023561,2]
[319494462,1710801050413,-500.0,0.00023561,2]
[319494463,1710801050422,-500.0,0.00023561,2]
[319494464,1710801050432,-1450.68,0.00023561,2]
[319494465,1710801050441,-592.1,0.00023561,2]
[319494466,1710801050450,-500.0,0.00023561,2]
[319494467,1710801050459,-1020.92,0.00023561,2]
[319494468,1710801050468,-2398.91,0.00023561,2]
[319494469,1710801050478,-565.0,0.00023561,2]
[319494470,1710801050487,-1256.16,0.00023561,2]
[319494471,1710801050496,-500.0,0.00023561,2]
[319494472,1710801050506,-500.0,0.00023561,2]
[319494473,1710801050515,-500.0,0.00023561,2]
[319494474,1710801050525,-813.04,0.00023561,2]
[319494475,1710801050536,-500.0,0.00023561,2]
[319494476,1710801050545,-868.45,0.00023561,2]
[319494477,1710801050555,-500.0,0.00023561,2]
[319494478,1710801050564,-2743.09,0.00023561,2]
[319494479,1710801050574,-500.0,0.00023561,2]
[319494480,1710801050584,-1261.92,0.00023561,2]
[319494481,1710801050593,-1647.35,0.00023561,2]
[319494482,1710801050603,-620.58,0.00023561,2]
[319494483,1710801050613,-500.0,0.00023561,2]
[319494484,1710801050622,-500.0,0.00023561,2]
[319494485,1710801050631,-500.0,0.00023561,2]
[319494486,1710801050640,-641.83,0.00023561,2]
[319494487,1710801050649,-1727.41,0.00023561,2]
[319494488,1710801050659,-500.0,0.00023561,2]
[319494489,1710801050669,-1697.32,0.00023561,2]
[319494490,1710801050679,-1310.25,0.00023561,2]
[319494491,1710801050689,-679.29,0.00023561,2]
[319494492,1710801050698,-740.07,0.00023561,2]
[319494493,1710801050708,-500.0,0.00023561,2]
[319494494,1710801050717,-500.0,0.00023561,2]
[319494495,1710801050727,-500.0,0.00023561,2]
[319494496,1710801050737,-500.0,0.00023561,2]
[319494497,1710801050746,-500.0,0.00023561,2]
[319494498,1710801050756,-542.58,0.00023561,2]
[319494499,1710801050766,-3137.35,0.00023561,2]
[319494500,1710801050778,-306.05,0.00023561,2]
[319494501,1710801050790,-500.0,0.00023561,2]
[319494502,1710801050799,-548.82,0.00023561,2]
[319494503,1710801050809,-500.0,0.00023561,2]
[319494504,1710801050818,-500.0,0.00023561,2]
[319494505,1710801050828,-500.0,0.00023561,2]
[319494506,1710801050839,-500.0,0.00023561,2]
[319494507,1710801050848,-500.0,0.00023561,2]
[319494508,1710801050859,-486.50469554,0.00023561,2]
[319494509,1710801050869,-3702.32,0.00023561,2]
[319494510,1710801050879,-1755.98,0.00023561,2]
[319494511,1710801050889,-500.0,0.00023561,2]
[319494512,1710801050898,-512.55,0.00023561,2]
[319494513,1710801050909,-500.0,0.00023561,2]
[319494514,1710801050920,-633.49,0.00023561,2]
[319494515,1710801050930,-500.0,0.00023561,2]
[319494516,1710801050943,-688.74,0.00023561,2]
[319494517,1710801050952,-1528.62,0.00023561,2]
[319494518,1710801050962,-1077.35,0.00023561,2]
[319494519,1710801050972,-3173.6,0.00023561,2]
[319494520,1710801050982,-468.13305552,0.00023561,2]
[319494521,1710801050991,-1649.19,0.00023561,2]
[319494522,1710801051001,-500.0,0.00023561,2]
[319494523,1710801051011,-553.06,0.00023561,2]
[319494524,1710801051021,-4842.31,0.00023561,2]
[319494525,1710801051031,-500.0,0.00023561,2]
[319494526,1710801051041,-500.0,0.00023561,2]
[319494527,1710801051051,-500.0,0.00023561,2]
[319494528,1710801051060,-1767.83,0.00023561,2]
[319494529,1710801051069,-500.0,0.00023561,2]
[319494530,1710801051080,-500.0,0.00023561,2]
[319494531,1710801051089,-589.57,0.00023561,2]
[319494532,1710801051099,-500.0,0.00023561,2]
[319494533,1710801051109,-526.71,0.00023561,2]
[319494534,1710801051119,-5762.66,0.00023561,2]
[319494535,1710801051129,-500.0,0.00023561,2]
[319494536,1710801051138,-500.0,0.00023561,2]
[319494537,1710801051148,-500.0,0.00023561,2]
[319494538,1710801051158,-500.0,0.00023561,2]
[319494539,1710801051167,-1538.72,0.00023561,2]
[319494540,1710801051177,-1121.93,0.00023561,2]
[319494541,1710801051186,-646.66,0.00023561,2]
[319494542,1710801051196,-8657.42,0.00023561,2]
[319494543,1710801051206,-2138.49,0.00023561,2]
[319494544,1710801051216,-500.0,0.00023561,2]
[319494545,1710801051227,-545.38,0.00023561,2]
[319494546,1710801051237,-526.87,0.00023561,2]
[319494547,1710801051246,-2446.39,0.00023561,2]
[319494548,1710801051255,-500.0,0.00023561,2]
[319494549,1710801051265,-1107.25,0.00023561,2]
[319494550,1710801051274,-772.83,0.00023561,2]
[319494551,1710801051285,-500.0,0.00023561,2]
[319494552,1710801051295,-958.79,0.00023561,2]
[319494553,1710801051304,-500.0,0.00023561,2]
[319494554,1710801051314,-500.0,0.00023561,2]
[319494555,1710801051324,-914.46,0.00023561,2]
[319494556,1710801051334,-500.0,0.00023561,2]
[319494557,1710801051344,-3034.02,0.00023561,2]
[319494558,1710801051354,-741.66,0.00023561,2]
[319494559,1710801051366,-592.52,0.00023561,2]
[319494560,1710801051376,-974.89,0.00023561,2]
[319494561,1710801051386,-1719.57,0.00023561,2]
[319494562,1710801051396,-3885.21,0.00023561,2]
[319494563,1710801051405,-500.0,0.00023561,2]
[319494564,1710801051415,-500.0,0.00023561,2]
[319494565,1710801051425,-500.0,0.00023561,2]
[319494566,1710801051434,-500.0,0.00023561,2]
[319494567,1710801051444,-1127.08,0.00023561,2]
[319494568,1710801051454,-1695.2,0.00023561,2]
[319494569,1710801051463,-1666.58,0.00023561,2]
[319494570,1710801051473,-500.0,0.00023561,2]
[319494571,1710801051483,-500.0,0.00023561,2]
[319494572,1710801051493,-3896.24,0.00023561,2]
[319494573,1710801051502,-500.0,0.00023561,2]
[319494574,1710801051512,-1780.73,0.00023561,2]
[319494575,1710801051521,-638.81586183,0.00023561,2]
[319494576,1710801051531,-500.0,0.00023561,2]
[319494577,1710801051542,-500.0,0.00023561,2]
[319494578,1710801051551,-3745.04,0.00023561,2]
[319494579,1710801051561,-991.09,0.00023561,2]
[319494580,1710801051570,-500.0,0.00023561,2]
[319494581,1710801051579,-2989.78,0.00023561,2]
[319494582,1710801051588,-986.84659758,0.000236,2]
[319494583,1710801051598,-151.05666748,0.00023665,2]
[319494584,1710801051608,-150.0,0.0002372,2]
[319494585,1710801051618,-157.69426882,0.00023735,2]
[319494586,1710801051628,-169.171942,0.00023809,2]
[319494587,1710801051638,-500.0,0.00023835,2]
[319494588,1710801051648,-500.0,0.00023835,2]
[319494589,1710801051658,-500.0,0.00023835,2]
[319494590,1710801051668,-500.0,0.00023835,2]
[319494591,1710801051677,-1450.68,0.00023835,2]
[319494592,1710801051687,-592.1,0.00023835,2]
[319494593,1710801051697,-504.53483185,0.00023835,2]
[319494594,1710801051707,-1020.92,0.00023835,2]
[319494595,1710801051716,-2398.91,0.00023835,2]
[319494596,1710801051726,-565.0,0.00023835,2]
[319494597,1710801051735,-1256.16,0.00023835,2]
[319494598,1710801051745,-500.0,0.00023835,2]
[319494599,1710801051755,-500.0,0.00023835,2]
[319494600,1710801051764,-500.0,0.00023835,2]
[319494601,1710801051774,-813.04,0.00023835,2]
[319494602,1710801051785,-500.8537866,0.00023835,2]
[319494603,1710801051795,-868.45,0.00023835,2]
[319494604,1710801051805,-216.59603514,0.00023835,2]
[319494605,1710801051815,-2743.09,0.00023835,2]
[319494606,1710801051825,-343.10708902,0.00023835,2]
[319494607,1710801051834,-1261.92,0.00023835,2]
[319494608,1710801051844,-1647.35,0.00023835,2]
[319494609,1710801051852,-620.58,0.00023835,2]
[319494610,1710801051862,-500.0,0.00023835,2]
[319494611,1710801051871,-500.0,0.00023835,2]
[319494612,1710801051881,-500.0,0.00023835,2]
[319494613,1710801051890,-641.83,0.00023835,2]
[319494614,1710801051899,-1727.41,0.00023835,2]
[319494615,1710801051909,-500.0,0.00023835,2]
[319494616,1710801051919,-1697.32,0.00023835,2]
[319494617,1710801051928,-1310.25,0.00023835,2]
[319494618,1710801051941,-679.29,0.00023835,2]
[319494619,1710801051951,-740.07,0.00023835,2]
[319494620,1710801051960,-500.0,0.00023835,2]
[319494621,1710801051970,-500.0,0.00023835,2]
[319494622,1710801051979,-391.46611862,0.00023835,2]
[319494623,1710801051989,-500.0,0.00023835,2]
[319494624,1710801051998,-500.0,0.00023835,2]
[319494625,1710801052009,-542.58,0.00023835,2]
[319494626,1710801052019,-3137.35,0.00023835,2]
[319494627,1710801052029,-500.0,0.00023835,2]
[319494628,1710801052039,-548.82,0.00023835,2]
[319494629,1710801052048,-500.0,0.00023835,2]
[319494630,1710801052057,-500.0,0.00023835,2]
[319494631,1710801052066,-500.0,0.00023835,2]
[319494632,1710801052075,-500.0,0.00023835,2]
[319494633,1710801052085,-500.0,0.00023835,2]
[319494634,1710801052094,-3702.32,0.00023835,2]
[319494635,1710801052103,-1755.98,0.00023835,2]
[319494636,1710801052113,-500.0,0.00023835,2]
[319494637,1710801052122,-512.55,0.00023835,2]
[319494638,1710801052131,-500.0,0.00023835,2]
[319494639,1710801052336,-633.49,0.00023835,2]
[319494640,1710801052384,-500.0,0.00023835,2]
[319494641,1710801052393,-688.74,0.00023835,2]
[319494642,1710801052403,-1528.62,0.00023835,2]
[319494643,1710801052412,-1077.35,0.00023835,2]
[319494644,1710801052422,-3173.6,0.00023835,2]
[319494645,1710801052432,-1649.19,0.00023835,2]
[319494646,1710801052441,-500.0,0.00023835,2]
[319494647,1710801052450,-553.06,0.00023835,2]
[319494648,1710801052460,-4842.31,0.00023835,2]
[319494649,1710801052469,-500.0,0.00023835,2]
[319494650,1710801052479,-500.0,0.00023835,2]
[319494651,1710801052489,-500.0,0.00023835,2]
[319494652,1710801052499,-1767.83,0.00023835,2]
[319494653,1710801052509,-500.0,0.00023835,2]
[319494654,1710801052518,-500.0,0.00023835,2]
[319494655,1710801052528,-589.57,0.00023835,2]
[319494656,1710801052538,-500.0,0.00023835,2]
[319494657,1710801052547,-526.71,0.00023835,2]
[319494658,1710801052557,-5762.66,0.00023835,2]
[319494659,1710801052566,-500.0,0.00023835,2]
[319494660,1710801052576,-500.0,0.00023835,2]
[319494661,1710801052585,-500.0,0.00023835,2]
[319494662,1710801052595,-500.0,0.00023835,2]
[319494663,1710801052604,-1538.72,0.00023835,2]
[319494664,1710801052613,-1121.93,0.00023835,2]
[319494665,1710801052623,-646.66,0.00023835,2]
[319494666,1710801052633,-8657.42,0.00023835,2]
[319494667,1710801052642,-2138.49,0.00023835,2]
[319494668,1710801052652,-545.38,0.00023835,2]
[319494669,1710801052662,-526.87,0.00023835,2]
[319494670,1710801052671,-2446.39,0.00023835,2]
[319494671,1710801052681,-500.0,0.00023835,2]
[319494672,1710801052691,-1107.25,0.00023835,2]
[319494673,1710801052701,-772.83,0.00023835,2]
[319494674,1710801052711,-500.0,0.00023835,2]
[319494675,1710801052721,-958.79,0.00023835,2]
[319494676,1710801052731,-510.23,0.00023835,2]
[319494677,1710801052741,-914.46,0.00023835,2]
[319494678,1710801052751,-500.0,0.00023835,2]
[319494679,1710801052761,-3034.02,0.00023835,2]
[319494680,1710801052770,-741.66,0.00023835,2]
[319494681,1710801052780,-592.52,0.00023835,2]
[319494682,1710801052790,-974.89,0.00023835,2]